bitfinex/quotes_BTCUSD_20241018
["timestamp","ask_amount","ask_price","bid_price","bid_amount"]
[1729289101911,0.16245019,68278.0,68271.0,0.000829]
[1729289102349,0.01349104,68278.0,68273.0,0.1]
[1729289102776,0.0817,68285.0,68273.0,0.1]
[1729289102985,0.14895915,68284.0,68273.0,0.1]
[1729289103172,0.16245588,68284.0,68273.0,0.1]
[1729289103383,0.01360426,68283.0,68271.0,0.000829]
[1729289103614,0.14895915,68282.0,68273.0,0.1]
[1729289103822,0.16244301,68282.0,68273.0,0.1]
[1729289104469,0.01362055,68281.0,68273.0,0.1]
[1729289104919,0.0134837,68280.0,68273.0,0.1]
[1729289105368,0.02728526,68279.0,68273.0,0.1]
[1729289105597,0.01364263,68278.0,68273.0,0.1]
[1729289105813,0.01364263,68277.0,68273.0,0.1]
[1729289106052,0.01348338,68276.0,68273.0,0.1]
[1729289106271,0.01348338,68276.0,68271.0,0.000829]
[1729289106534,0.14895915,68282.0,68271.0,0.000829]
[1729289106763,0.01349208,68275.0,68271.0,0.000829]
[1729289106992,0.14895915,68282.0,68271.0,0.000829]
[1729289107209,0.01349243,68274.0,68271.0,0.000829]
[1729289107458,0.14895915,68282.0,68271.0,0.000829]
[1729289107674,0.0600804,68281.0,68271.0,0.000829]
[1729289107926,0.0600802,68280.0,68271.0,0.000829]
[1729289108175,0.013493,68281.0,68271.0,0.000829]
[1729289108176,0.01365465,68279.0,68271.0,0.000829]
[1729289108419,0.01365465,68278.0,68271.0,0.000829]
[1729289108681,0.02714732,68277.0,68271.0,0.000829]
[1729289108929,0.01365465,68276.0,68271.0,0.000829]
[1729289109157,0.01365465,68275.0,68271.0,0.000829]
[1729289109409,0.01349251,68275.0,68271.0,0.000829]
[1729289109635,0.23791338,68274.0,68271.0,0.000829]
[1729289109872,0.1132,68272.0,68271.0,0.000829]
[1729289110109,0.27581153,68272.0,68271.0,0.000829]
[1729289110335,0.28930542,68272.0,68271.0,0.000829]
[1729289110557,0.30022732,68272.0,68271.0,0.000829]
[1729289110781,0.32207166,68272.0,68271.0,0.000829]
[1729289113866,0.27565304,68272.0,68271.0,0.000829]
[1729289114095,0.0599047,68272.0,68271.0,0.000829]
[1729289114325,0.01349389,68272.0,68271.0,0.000829]
[1729289114552,0.0218439,68283.0,68271.0,0.000829]
[1729289114778,0.01211655,68272.0,68271.0,0.000829]
[1729289114990,0.0218439,68281.0,68271.0,0.000829]
[1729289115217,0.01211655,68272.0,68271.0,0.000829]
[1729289115457,0.02184099,68279.0,68271.0,0.000829]
[1729289115676,0.01365004,68278.0,68271.0,0.000829]
[1729289115897,0.01365004,68277.0,68271.0,0.000829]
[1729289116118,0.01365004,68276.0,68271.0,0.000829]
[1729289116340,0.01365004,68275.0,68271.0,0.000829]
[1729289116575,0.16260919,68274.0,68271.0,0.000829]
[1729289116796,0.01365004,68273.0,68271.0,0.000829]
[1729289117014,0.01365004,68272.0,68271.0,0.000829]
[1729289117236,0.02578801,68272.0,68271.0,0.000829]
[1729289117706,0.02578615,68272.0,68271.0,0.000829]
[1729289117963,0.01213797,68272.0,68271.0,0.000829]
[1729289118429,0.0817,68282.0,68271.0,0.000829]
[1729289118664,0.18444464,68281.0,68271.0,0.000829]
[1729289118892,0.03548549,68280.0,68271.0,0.000829]
[1729289119105,0.04640401,68279.0,68271.0,0.000829]
[1729289119363,0.01364815,68278.0,68271.0,0.000829]
[1729289119584,0.01364815,68277.0,68271.0,0.000829]
[1729289119812,0.01364815,68276.0,68271.0,0.000829]
[1729289120030,0.01364815,68275.0,68271.0,0.000829]
[1729289120269,0.01364815,68274.0,68271.0,0.000829]
[1729289120511,0.0121384,68275.0,68271.0,0.000829]
[1729289120512,0.01364815,68273.0,68271.0,0.000829]
[1729289120737,0.01213824,68273.0,68271.0,0.000829]
[1729289120970,0.0136476,68272.0,68271.0,0.000829]
[1729289121196,0.0435019,68280.0,68271.0,0.000829]
[1729289121446,0.01213815,68272.0,68271.0,0.000829]
[1729289121965,0.04365944,68276.0,68271.0,0.000829]
[1729289122180,0.01213815,68272.0,68271.0,0.000829]
[1729289122397,0.04365944,68276.0,68271.0,0.000829]
[1729289122626,0.01213815,68272.0,68271.0,0.000829]
[1729289123078,0.04365944,68275.0,68271.0,0.000829]
[1729289123311,0.01213815,68272.0,68271.0,0.000829]
[1729289123554,0.04365944,68275.0,68271.0,0.000829]
[1729289123801,0.01213815,68272.0,68271.0,0.000829]
[1729289124025,0.04365944,68275.0,68271.0,0.000829]
[1729289124249,0.01365261,68274.0,68271.0,0.000829]
[1729289124482,0.04365944,68275.0,68271.0,0.000829]
[1729289124483,0.02579085,68273.0,68271.0,0.02227287]
[1729289124700,0.01365287,68272.0,68271.0,0.000829]
[1729289125149,0.02579102,68272.0,68271.0,0.000829]
[1729289125600,0.01213815,68272.0,68271.0,0.000829]
[1729289125822,0.02579242,68272.0,68271.0,0.000829]
[1729289126265,0.01213815,68272.0,68271.0,0.000829]
[1729289126486,0.04365944,68275.0,68271.0,0.000829]
[1729289126764,0.01213815,68272.0,68271.0,0.000829]
[1729289126992,0.04368911,68275.0,68271.0,0.000829]
[1729289127208,0.01213815,68272.0,68271.0,0.000829]
[1729289127426,0.04368911,68274.0,68271.0,0.000829]
[1729289127643,0.04368911,68276.0,68271.0,0.000829]
[1729289127858,0.02579265,68275.0,68271.0,0.000829]
[1729289128074,0.01365425,68274.0,68271.0,0.000829]
[1729289128301,0.38249833,68273.0,68271.0,0.000829]
[1729289128526,0.3072779,68272.0,68271.0,0.000829]
[1729289128759,0.1731,68266.0,68262.0,0.21988493]
[1729289129009,0.1731,68266.0,68258.0,0.02291027]
[1729289129010,0.002,68262.0,68258.0,0.02291027]
[1729289129280,0.002,68262.0,68253.0,0.21988493]
[1729289129281,0.15401188,68259.0,68253.0,0.21988493]
[1729289129530,0.10911462,68255.0,68253.0,0.21988493]
[1729289129774,0.19670936,68254.0,68253.0,0.21988493]
[1729289130029,0.02579428,68254.0,68250.0,0.03]
[1729289130250,0.01363586,68253.0,68250.0,0.03]
[1729289130473,0.01215834,68253.0,68250.0,0.03]
[1729289130950,0.06547351,68259.0,68250.0,0.03]
[1729289130951,0.04364893,68259.0,68250.0,0.03]
[1729289131188,0.0120582,68253.0,68250.0,0.03]
[1729289131422,0.04364893,68261.0,68250.0,0.03]
[1729289131654,0.0120582,68253.0,68250.0,0.03]
[1729289131878,0.19260808,68261.0,68250.0,0.03]
[1729289132100,0.01362925,68260.0,68250.0,0.03]
[1729289132315,0.01205883,68260.0,68250.0,0.03]
[1729289134092,0.01205883,68260.0,68254.0,0.21988493]
[1729289134374,0.01205883,68260.0,68250.0,0.03]
[1729289134592,0.04364893,68264.0,68250.0,0.03]
[1729289134815,0.01206849,68259.0,68250.0,0.03]
[1729289135034,0.04364893,68264.0,68250.0,0.03]
[1729289135256,0.01206841,68258.0,68250.0,0.03]
[1729289135475,0.01206832,68257.0,68254.0,0.1]
[1729289135916,0.21988493,68265.0,68254.0,0.1]
[1729289136144,0.04362325,68270.0,68256.0,0.1]
[1729289136375,0.01087387,68264.0,68258.0,0.1]
[1729289136608,0.001658,68271.0,68255.0,0.30028493]
[1729289136609,0.001658,68271.0,68260.0,0.1]
[1729289136852,0.001658,68271.0,68262.0,0.1]
[1729289137064,0.001658,68271.0,68264.0,0.1]
[1729289137314,0.001658,68271.0,68262.0,0.1]
[1729289137537,0.001658,68271.0,68264.0,0.1]
[1729289138274,0.001658,68271.0,68267.0,0.21988493]
[1729289138497,0.001658,68271.0,68260.0,0.21988493]
[1729289138498,0.21316578,68283.0,68268.0,1.77017715]
[1729289138716,0.21316578,68283.0,68269.0,0.59436415]
[1729289138935,0.21316578,68283.0,68270.0,0.609631]
[1729289139158,0.21316578,68283.0,68272.0,0.1]
[1729289139654,0.14895915,68282.0,68272.0,0.1]
[1729289139878,0.00990414,68281.0,68272.0,0.1]
[1729289140107,0.15886329,68281.0,68272.0,0.1]
[1729289140324,0.15886329,68281.0,68274.0,0.1]
[1729289141494,0.15886329,68281.0,68262.0,0.1]
[1729289141722,0.15886329,68281.0,68272.0,0.1]
[1729289142427,0.00990414,68281.0,68273.0,0.21988493]
[1729289142643,0.00990414,68281.0,68274.0,0.1]
[1729289142868,0.04362759,68285.0,68274.0,0.1]
[1729289143085,0.17248633,68284.0,68274.0,0.1]
[1729289143323,0.15886194,68284.0,68274.0,0.1]
[1729289143542,0.15886194,68284.0,68262.0,0.1]
[1729289143765,0.15886194,68284.0,68273.0,0.1]
[1729289143975,0.21988493,68283.0,68273.0,0.1]
[1729289144207,0.00990279,68284.0,68273.0,0.1]
[1729289144437,0.00990441,68282.0,68275.0,0.1]
[1729289144700,0.00990433,68281.0,68275.0,0.1]
[1729289145189,0.15061715,68286.0,68275.0,0.1]
[1729289145407,0.00990424,68280.0,68275.0,0.1]
[1729289145648,0.15061715,68286.0,68264.0,0.1]
[1729289145865,0.15061715,68286.0,68269.0,0.1]
[1729289146085,0.00990465,68285.0,68270.0,0.374811]
[1729289146313,0.21988493,68284.0,68271.0,0.1]
[1729289146535,0.21988493,68284.0,68272.0,0.687601]
[1729289146754,0.00990449,68283.0,68273.0,0.1]
[1729289147883,0.04527723,68286.0,68269.0,0.1]
[1729289148096,0.00990624,68282.0,68269.0,0.385841]
[1729289148315,0.00990624,68282.0,68271.0,0.1]
[1729289148587,0.001658,68281.0,68271.0,0.1]
[1729289149459,0.00990608,68280.0,68269.0,0.1]
[1729289149671,0.001658,68281.0,68269.0,0.1]
[1729289149919,0.00990608,68280.0,68269.0,0.1]
[1729289150348,0.00148157,68281.0,68269.0,0.1]
[1729289150788,0.00990608,68280.0,68269.0,0.1]
[1729289151001,0.00990608,68280.0,68269.0,0.12129453]
[1729289151212,0.00148157,68281.0,68269.0,0.12129453]
[1729289151427,0.009906,68279.0,68269.0,0.12129453]
[1729289151659,0.00990608,68280.0,68269.0,0.12129453]
[1729289151866,0.00990592,68278.0,68269.0,0.1]
[1729289152085,0.00990584,68277.0,68269.0,0.24895915]
[1729289152341,0.00148157,68281.0,68276.0,0.1]
[1729289152769,0.00990608,68280.0,68276.0,0.1]
[1729289153431,0.00990608,68280.0,68271.0,0.1]
[1729289153680,0.00148157,68281.0,68271.0,0.1]
[1729289153681,0.00148157,68281.0,68271.0,0.794812]
[1729289153914,0.00148157,68281.0,68273.0,0.1]
[1729289154124,0.00148157,68281.0,68271.0,0.1]
[1729289154562,0.00148157,68281.0,68273.0,0.1]
[1729289154773,0.00992352,68280.0,68273.0,0.1]
[1729289158308,0.00992352,68280.0,68262.0,0.1]
[1729289158514,0.00992352,68280.0,68270.0,0.1]
[1729289161639,0.21988493,68277.0,68253.0,0.100829]
[1729289161856,0.0901,68278.0,68265.0,0.1]
[1729289162070,0.0099232,68276.0,68265.0,0.1]
[1729289162273,0.00991922,68275.0,68265.0,0.1]
[1729289162477,0.0901,68278.0,68265.0,0.1]
[1729289162691,0.00991939,68277.0,68265.0,0.1]
[1729289164039,0.00991939,68277.0,68270.0,0.000828]
[1729289164263,0.01364996,68276.0,68270.0,0.000828]
[1729289164476,0.00991939,68277.0,68270.0,0.000828]
[1729289164686,0.02357011,68276.0,68270.0,0.000828]
[1729289164905,0.0099193,68276.0,68270.0,0.000828]
[1729289165402,0.0136603,68275.0,68270.0,0.000828]
[1729289165580,0.00991486,68275.0,68270.0,0.000828]
[1729289166254,0.01366034,68274.0,68270.0,0.000828]
[1729289166467,0.00991486,68275.0,68270.0,0.000828]
[1729289166679,0.01366489,68274.0,68270.0,0.000828]
[1729289166892,0.00991126,68274.0,68270.0,0.000828]
[1729289167121,0.16262346,68273.0,68270.0,0.000828]
[1729289167358,0.08,68271.0,68270.0,0.000828]
[1729289167581,0.1701,68270.0,68246.0,0.001656]
[1729289167808,0.16348578,68264.0,68263.0,0.21988493]
[1729289168101,0.54610796,68264.0,68246.0,0.001656]
[1729289168273,0.04359106,68259.0,68246.0,0.001656]
[1729289168486,0.0273207,68258.0,68246.0,0.001656]
[1729289168698,0.0273207,68257.0,68246.0,0.001656]
[1729289168906,0.02093764,68258.0,68246.0,0.001656]
[1729289168907,0.0273207,68256.0,68246.0,0.001656]
[1729289169142,0.01366431,68255.0,68252.0,0.001656]
[1729289169351,0.01000674,68256.0,68252.0,0.001656]
[1729289169564,0.01000658,68254.0,68252.0,0.001656]
[1729289169776,0.04359106,68260.0,68252.0,0.001656]
[1729289169983,0.00999343,68254.0,68252.0,0.001656]
[1729289170160,0.01363134,68254.0,68252.0,0.001656]
[1729289170369,0.00999343,68254.0,68252.0,0.001656]
[1729289170759,0.04356957,68259.0,68252.0,0.001656]
[1729289170963,0.00998851,68254.0,68252.0,0.001656]
[1729289171164,0.17075657,68260.0,68252.0,0.001656]
[1729289171393,0.14895915,68260.0,68259.0,0.1]
[1729289171612,0.17619317,68260.0,68259.0,0.1]
[1729289172039,0.17619317,68260.0,68252.0,0.001656]
[1729289172239,0.02723402,68259.0,68252.0,0.001656]
[1729289172453,0.01361701,68258.0,68252.0,0.001656]
[1729289172656,0.01361701,68257.0,68252.0,0.001656]
[1729289172858,0.14895915,68260.0,68252.0,0.001656]
[1729289173062,0.01361192,68259.0,68252.0,0.001656]
[1729289173273,0.01361192,68258.0,68252.0,0.001656]
[1729289173695,0.00998669,68257.0,68252.0,0.001656]
[1729289174315,0.14895915,68260.0,68252.0,0.001656]
[1729289174524,0.00998661,68256.0,68252.0,0.001656]
[1729289174734,0.14895915,68260.0,68252.0,0.001656]
[1729289174949,0.00998653,68255.0,68252.0,0.001656]
[1729289175158,0.14895915,68260.0,68252.0,0.001656]
[1729289175369,0.00998645,68254.0,68252.0,0.001656]
[1729289175581,0.14895915,68260.0,68252.0,0.001656]
[1729289175795,0.00998645,68254.0,68252.0,0.001656]
[1729289175994,0.14895915,68260.0,68252.0,0.001656]
[1729289176210,0.00998645,68254.0,68252.0,0.001656]
[1729289176411,0.14895915,68260.0,68252.0,0.001656]
[1729289176628,0.00998645,68254.0,68252.0,0.001656]
[1729289176840,0.14895915,68260.0,68252.0,0.001656]
[1729289177274,0.00998686,68259.0,68252.0,0.001656]
[1729289177895,0.05357541,68259.0,68252.0,0.001656]
[1729289178438,0.05357541,68259.0,68255.0,0.1]
[1729289178776,0.05357541,68259.0,68252.0,0.001656]
[1729289182784,0.00998686,68259.0,68252.0,0.001656]
[1729289183376,0.00984491,68258.0,68252.0,0.001656]
[1729289183737,0.04358855,68266.0,68252.0,0.001656]
[1729289183913,0.00984483,68257.0,68252.0,0.001656]
[1729289184111,0.04358855,68265.0,68252.0,0.001656]
[1729289184341,0.0098454,68264.0,68252.0,0.001656]
[1729289184954,0.03,68259.0,68252.0,0.001656]
[1729289185367,0.00984401,68258.0,68252.0,0.001656]
[1729289197285,0.01365641,68257.0,68252.0,0.001656]
[1729289197543,0.00986111,68256.0,68252.0,0.001656]
[1729289197995,0.03,68259.0,68252.0,0.001656]
[1729289198214,0.00986128,68255.0,68252.0,0.001656]
[1729289198431,0.03,68259.0,68252.0,0.001656]
[1729289198651,0.02185074,68265.0,68252.0,0.001656]
[1729289198882,0.08087795,68264.0,68252.0,0.001656]
[1729289199099,0.04916473,68263.0,68252.0,0.001656]
[1729289199309,0.06995255,68262.0,68252.0,0.001656]
[1729289199537,0.02731375,68261.0,68252.0,0.001656]
[1729289199754,0.01365686,68260.0,68252.0,0.001656]
[1729289199965,0.01365686,68259.0,68252.0,0.001656]
[1729289200198,0.01365686,68258.0,68252.0,0.001656]
[1729289200417,0.00986199,68258.0,68252.0,0.001656]
[1729289200636,0.02185074,68265.0,68252.0,0.001656]
[1729289200637,0.02185152,68263.0,68252.0,0.001656]
[1729289200895,0.05629872,68262.0,68252.0,0.001656]
[1729289201118,0.01365784,68261.0,68252.0,0.001656]
[1729289201342,0.02352077,68260.0,68252.0,0.001656]
[1729289201551,0.01365784,68259.0,68252.0,0.001656]
[1729289201760,0.01365784,68258.0,68252.0,0.001656]
[1729289201988,0.00986277,68258.0,68252.0,0.001656]
[1729289202256,0.02189074,68265.0,68252.0,0.001656]
[1729289202257,4e-05,68265.0,68252.0,0.001656]
[1729289202484,0.03171724,68264.0,68252.0,0.001656]
[1729289202703,0.0355135,68263.0,68252.0,0.001656]
[1729289202915,0.02352261,68262.0,68252.0,0.001656]
[1729289203131,0.01365952,68261.0,68252.0,0.001656]
[1729289203360,0.01365952,68260.0,68252.0,0.001656]
[1729289203534,0.01365952,68259.0,68252.0,0.001656]
[1729289203751,0.01365952,68258.0,68252.0,0.001656]
[1729289203958,0.00986277,68258.0,68252.0,0.001656]
[1729289204387,0.02186268,68264.0,68252.0,0.001656]
[1729289204613,0.00986269,68257.0,68252.0,0.001656]
[1729289204842,0.02186256,68262.0,68252.0,0.001656]
[1729289205066,0.06542318,68264.0,68252.0,0.001656]
[1729289205067,0.08776261,68256.0,68252.0,0.001656]
[1729289205305,0.0136639,68255.0,68252.0,0.001656]
[1729289205526,0.02353033,68254.0,68252.0,0.001656]
[1729289205974,0.02353141,68254.0,68252.0,0.001656]
[1729289208313,0.02353141,68254.0,68253.0,0.02257614]
[1729289209585,0.00986643,68254.0,68253.0,0.02257614]
[1729289209930,0.0136702,68254.0,68253.0,0.02257614]
[1729289210285,0.06719368,68254.0,68253.0,0.02257614]
[1729289210477,0.10000135,68254.0,68253.0,0.02257614]
[1729289210684,0.05879907,68254.0,68253.0,0.02257614]
[1729289211121,0.12429885,68254.0,68253.0,0.02257614]
[1729289211334,0.05879907,68254.0,68253.0,0.02257614]
[1729289211956,0.05879907,68254.0,68253.0,0.000829]
[1729289212574,0.22016898,68254.0,68253.0,0.000829]
[1729289212786,0.30759727,68254.0,68253.0,0.000829]
[1729289213206,0.30759775,68254.0,68253.0,0.000829]
[1729289213413,0.22016898,68254.0,68253.0,0.000829]
[1729289213661,0.17369111,68254.0,68253.0,0.000829]
[1729289213850,0.22014743,68254.0,68253.0,0.000829]
[1729289214305,0.44003236,68254.0,68253.0,0.000829]
[1729289214525,0.47830233,68254.0,68253.0,0.000829]
[1729289214731,0.36910544,68254.0,68253.0,0.000829]
[1729289217402,0.35817568,68254.0,68253.0,0.000829]
[1729289217636,0.36910029,68254.0,68253.0,0.000829]
[1729289219148,0.36914029,68254.0,68253.0,0.000829]
[1729289220955,0.57114029,68254.0,68253.0,0.000829]
[1729289221171,0.181,68249.0,68246.0,0.001656]
[1729289221402,0.35675036,68248.0,68247.0,0.21988493]
[1729289221642,0.35675036,68248.0,68246.0,0.001656]
[1729289221643,0.36901715,68248.0,68246.0,0.001656]
[1729289221850,0.19686885,68247.0,68246.0,0.001656]
[1729289222071,0.46729713,68247.0,68246.0,0.001656]
[1729289222529,0.36901705,68247.0,68246.0,0.001656]
[1729289223876,0.32259575,68247.0,68246.0,0.001656]
[1729289224091,0.3688008,68247.0,68246.0,0.001656]
[1729289225618,0.47791595,68247.0,68246.0,0.001656]
[1729289226259,0.47795595,68247.0,68246.0,0.001656]
[1729289227162,0.3688408,68247.0,68246.0,0.001656]
[1729289227601,0.05868878,68247.0,68246.0,0.001656]
[1729289227818,0.02593898,68247.0,68246.0,0.001656]
[1729289228051,0.28516538,68247.0,68246.0,0.001656]
[1729289228285,0.6464457,68247.0,68246.0,0.001656]
[1729289228495,0.55717845,68247.0,68246.0,0.001656]
[1729289228716,0.55714453,68247.0,68246.0,0.001656]
[1729289230555,0.55914453,68247.0,68246.0,0.001656]
[1729289231468,0.52370091,68247.0,68246.0,0.001656]
[1729289231736,0.68999698,68247.0,68246.0,0.001656]
[1729289231970,0.68999748,68247.0,68246.0,0.001656]
[1729289232195,0.5591289,68247.0,68246.0,0.001656]
[1729289233260,0.55897309,68247.0,68246.0,0.001656]
[1729289233890,0.1655,68242.0,68240.0,0.03]
[1729289234103,0.45446888,68241.0,68240.0,0.03]
[1729289234316,0.47627072,68241.0,68240.0,0.03]
[1729289234753,0.47827072,68241.0,68240.0,0.03]
[1729289234964,0.55661443,68241.0,68240.0,0.03]
[1729289235175,0.52118644,68241.0,68240.0,0.03]
[1729289235396,0.55659576,68241.0,68240.0,0.03]
[1729289236072,0.023,68240.0,68225.0,0.1]
[1729289236281,0.0435451,68235.0,68232.0,0.1]
[1729289236503,0.06531765,68237.0,68232.0,0.1]
[1729289236504,0.18415372,68234.0,68232.0,0.1]
[1729289236728,0.01362195,68233.0,68232.0,0.1]
[1729289237164,0.02429416,68233.0,68232.0,0.1]
[1729289237371,0.02429416,68233.0,68227.0,0.0828]
[1729289237372,0.01067221,68233.0,68227.0,0.0828]
[1729289237594,0.01067221,68233.0,68232.0,0.21988493]
[1729289237807,0.21988493,68244.0,68233.0,0.1828]
[1729289238022,0.21988493,68236.0,68235.0,0.1]
[1729289238266,0.21988493,68244.0,68237.0,0.1]
[1729289238480,0.21988493,68244.0,68238.0,0.0828]
[1729289238904,4e-05,68247.0,68238.0,0.0828]
[1729289239797,4e-05,68244.0,68238.0,0.0828]
[1729289242583,0.21988493,68243.0,68232.0,0.177329]
[1729289242804,4e-05,68244.0,68237.0,0.1]
[1729289243684,4e-05,68244.0,68239.0,0.1]
[1729289243904,4e-05,68244.0,68241.0,0.1]
[1729289244122,0.0178894,68243.0,68242.0,1.90186315]
[1729289244341,4e-05,68244.0,68243.0,1.518651]
[1729289244836,4e-05,68244.0,68243.0,1.46509]
[1729289245061,4e-05,68244.0,68243.0,1.58080315]
[1729289245285,4e-05,68244.0,68243.0,1.73520915]
[1729289246374,4e-05,68244.0,68243.0,1.60277719]
[1729289247062,4e-05,68244.0,68243.0,1.58125615]
[1729289247735,4e-05,68244.0,68243.0,1.56350715]
[1729289252243,0.001698,68244.0,68243.0,1.56350715]
[1729289258028,0.001698,68244.0,68243.0,2.78390315]
[1729289258246,0.001698,68244.0,68243.0,2.78829515]
[1729289258894,0.001698,68244.0,68243.0,2.77510815]
[1729289259766,4e-05,68247.0,68243.0,2.77510815]
[1729289259767,4e-05,68247.0,68244.0,0.0786]
[1729289259979,4e-05,68247.0,68246.0,0.1]
[1729289260237,4e-05,68247.0,68246.0,2.52268615]
[1729289260857,4e-05,68247.0,68246.0,2.46293115]
[1729289261071,4e-05,68247.0,68246.0,2.54153115]
[1729289266298,0.001698,68247.0,68246.0,2.54153115]
[1729289267187,0.001698,68247.0,68246.0,2.54353115]
[1729289267619,0.001698,68247.0,68246.0,2.54153115]
[1729289268749,0.001698,68247.0,68246.0,4.20719915]
[1729289268967,0.001698,68247.0,68246.0,3.97302115]
[1729289272928,0.001698,68247.0,68246.0,3.27577415]
[1729289273640,0.001698,68247.0,68246.0,3.25167015]
[1729289273864,0.001698,68247.0,68246.0,3.22035015]
[1729289274342,0.001698,68247.0,68246.0,3.22235015]
[1729289280097,0.001658,68253.0,68250.0,0.002]
[1729289280318,0.001658,68253.0,68252.0,0.1]
[1729289280564,0.001658,68253.0,68252.0,2.25263715]
[1729289280785,0.001658,68253.0,68252.0,1.98818115]
[1729289281002,0.001658,68253.0,68252.0,1.91496115]
[1729289281687,0.001658,68253.0,68252.0,1.82989215]
[1729289282433,0.001658,68253.0,68252.0,0.98178715]
[1729289282655,0.001658,68253.0,68252.0,0.832828]
[1729289287492,0.001658,68253.0,68252.0,0.1]
[1729289287711,0.001658,68253.0,68252.0,1.164389]
[1729289288156,0.001658,68253.0,68252.0,1.142549]
[1729289288825,0.001658,68253.0,68252.0,1.091141]
[1729289290597,0.001658,68253.0,68252.0,1.025078]
[1729289293620,0.001658,68253.0,68252.0,0.877731]
[1729289301236,0.083158,68253.0,68252.0,0.1]
[1729289301475,0.083158,68253.0,68244.0,0.023743]
[1729289301476,0.083158,68253.0,68244.0,0.000829]
[1729289301724,0.083158,68253.0,68246.0,0.1]
[1729289301725,0.1012888,68253.0,68246.0,0.1]
[1729289301975,0.1012888,68253.0,68247.0,0.779375]
[1729289302191,0.1012888,68253.0,68248.0,0.1]
[1729289302415,0.1012888,68253.0,68250.0,0.1]
[1729289303572,0.1012888,68253.0,68245.0,0.1]
[1729289303836,0.1012888,68253.0,68245.0,1.187052]
[1729289304071,0.1012888,68253.0,68247.0,0.1]
[1729289304297,0.083158,68253.0,68249.0,0.1]
[1729289305150,0.01818036,68252.0,68249.0,0.1]
[1729289305406,0.01818036,68252.0,68245.0,0.1]
[1729289305634,0.01818036,68252.0,68245.0,1.113833]
[1729289306083,0.083158,68253.0,68247.0,0.1]
[1729289306347,0.083158,68253.0,68248.0,1.013482]
[1729289306582,0.083158,68253.0,68249.0,0.1]
[1729289307258,0.01818036,68252.0,68251.0,0.1]
[1729289307488,0.01818036,68252.0,68251.0,1.001794]
[1729289307721,0.083158,68253.0,68251.0,0.985631]
[1729289307940,0.083158,68253.0,68252.0,0.665116]
[1729289308412,0.10133849,68253.0,68252.0,0.665116]
[1729289310537,0.0804,68259.0,68253.0,0.1]
[1729289310777,4e-05,68265.0,68255.0,0.1]
[1729289311015,4e-05,68265.0,68252.0,0.002]
[1729289311016,4e-05,68265.0,68257.0,0.1]
[1729289311252,4e-05,68265.0,68259.0,0.1]
[1729289311494,4e-05,68265.0,68261.0,0.1]
[1729289311724,4e-05,68265.0,68263.0,0.1]
[1729289311941,4e-05,68265.0,68264.0,1.43287015]
[1729289312610,4e-05,68265.0,68264.0,0.6741]
[1729289312867,4e-05,68265.0,68264.0,0.243223]
[1729289313315,4e-05,68265.0,68264.0,0.271741]
[1729289313791,0.09144,68265.0,68264.0,0.1]
[1729289314510,0.09144,68265.0,68255.0,0.1]
[1729289314696,0.09144,68265.0,68257.0,0.1]
[1729289314944,0.09144,68265.0,68259.0,0.1]
[1729289315160,0.09144,68265.0,68257.0,0.1]
[1729289315380,0.09144,68265.0,68256.0,0.14895915]
[1729289315381,0.09144,68265.0,68261.0,0.1]
[1729289316065,0.01518632,68264.0,68262.0,1.524743]
[1729289316287,0.01518632,68264.0,68256.0,0.14895915]
[1729289316288,0.01518632,68264.0,68263.0,0.656168]
[1729289316513,0.09144,68265.0,68263.0,0.462775]
[1729289316734,0.01518632,68264.0,68263.0,0.1]
[1729289317202,0.01518632,68264.0,68258.0,0.930353]
[1729289317423,4e-05,68265.0,68260.0,0.1]
[1729289317645,4e-05,68265.0,68261.0,0.585688]
[1729289317872,4e-05,68265.0,68262.0,0.61206]
[1729289318093,4e-05,68265.0,68263.0,0.43926]
[1729289318319,4e-05,68265.0,68262.0,0.1]
[1729289318547,4e-05,68265.0,68264.0,0.1]
[1729289318736,4e-05,68265.0,68262.0,0.1]
[1729289318977,4e-05,68265.0,68264.0,0.1]
[1729289319240,0.001696,68265.0,68264.0,0.1]
[1729289320107,0.001696,68265.0,68260.0,0.14895915]
[1729289320108,0.001696,68265.0,68261.0,0.1]
[1729289320337,0.001696,68265.0,68261.0,0.594972]
[1729289320590,0.001696,68265.0,68263.0,0.1]
[1729289321744,0.001696,68265.0,68261.0,0.1]
[1729289321984,0.001696,68265.0,68261.0,0.641815]
[1729289322203,0.001696,68265.0,68263.0,0.1]
[1729289323336,0.001696,68265.0,68261.0,0.1]
[1729289323561,0.001696,68265.0,68261.0,0.78819]
[1729289323783,0.001696,68265.0,68262.0,0.541338]
[1729289324004,0.001696,68265.0,68263.0,0.1]
[1729289324256,0.001696,68265.0,68261.0,0.1]
[1729289324462,0.001696,68265.0,68264.0,0.1]
[1729289325835,0.001696,68265.0,68261.0,0.1]
[1729289326039,0.001696,68265.0,68261.0,0.818989]
[1729289326252,0.001696,68265.0,68262.0,0.572137]
[1729289326484,0.001696,68265.0,68263.0,0.1]
[1729289327526,0.001696,68265.0,68260.0,0.14895915]
[1729289327527,0.001696,68265.0,68261.0,0.1]
[1729289327736,0.001696,68265.0,68261.0,0.818989]
[1729289328152,0.001696,68265.0,68263.0,0.1]
[1729289329204,0.001696,68265.0,68261.0,0.1]
[1729289329422,0.001696,68265.0,68261.0,0.745755]
[1729289329638,0.001696,68265.0,68262.0,0.572123]
[1729289329864,0.001696,68265.0,68263.0,0.1]
[1729289330753,0.01523616,68264.0,68261.0,0.1]
[1729289330975,0.01523616,68264.0,68261.0,0.81393]
[1729289331201,0.001696,68265.0,68263.0,0.1]
[1729289331428,0.001696,68265.0,68264.0,0.00079583]
[1729289331909,0.01693375,68265.0,68264.0,0.00079583]
[1729289332130,0.01693375,68265.0,68263.0,0.1]
[1729289332364,0.01693375,68265.0,68261.0,0.00079583]
[1729289332365,0.01693375,68265.0,68261.0,0.10079583]